[Event "St Kilda East and Caulfield Chess Club T3 2025 OPEN Thursdays"]
[Site "st kilda east, Australia"]
[Date "2025.08.28"]
[Round "5.7"]
[White "Bambridge, Greg"]
[Black "Beckman, John"]
[Result "1-0"]
[TimeControl "60 minutes per player per game plus 10 seconds from move 1"]
[WhiteElo "1378"]
[BlackElo "1201"]

1. e4 {[%clk 00:59:48]} {[%emt 00:00:22]} d6 {[%clk 00:59:56]} {[%emt
00:00:15]} 2. d4 {[%clk 00:59:50]} {[%emt 00:00:09]} e5 {[%clk 00:59:30]}
{[%emt 00:00:35]} 3. dxe5 {[%clk 00:59:34]} {[%emt 00:00:25]} dxe5 {[%clk
00:58:42]} {[%emt 00:00:58]} 4. Qxd8+ {[%clk 00:59:38]} {[%emt 00:00:07]} Kxd8
{[%clk 00:58:38]} {[%emt 00:00:13]} 5. Nc3 {[%clk 00:59:30]} {[%emt 00:00:18]}
Bb4 {[%clk 00:57:55]} {[%emt 00:00:53]} 6. Bd2 {[%clk 00:59:33]} {[%emt
00:00:06]} c6 {[%clk 00:57:27]} {[%emt 00:00:41]} 7. Bc4 {[%clk 00:59:07]}
{[%emt 00:00:33]} f6 {[%clk 00:56:09]} {[%emt 00:01:28]} 8. O-O-O {[%clk
00:57:33]} {[%emt 00:01:44]} Bg4 {[%clk 00:52:49]} {[%emt 00:03:30]} 9. f3
{[%clk 00:57:35]} {[%emt 00:00:09]} Bd7 {[%clk 00:50:14]} {[%emt 00:02:45]} 10.
Nge2 {[%clk 00:56:03]} {[%emt 00:01:42]} b5 {[%clk 00:49:02]} {[%emt 00:01:21]}
11. Be6 {[%clk 00:55:09]} {[%emt 00:01:04]} Ke8 {[%clk 00:44:38]} {[%emt
00:04:34]} 12. Bxd7+ {[%clk 00:54:21]} {[%emt 00:00:59]} Nxd7 {[%clk 00:44:34]}
{[%emt 00:00:14]} 13. f4 {[%clk 00:54:19]} {[%emt 00:00:12]} a5 {[%clk
00:43:29]} {[%emt 00:01:15]} 14. Rhf1 {[%clk 00:53:36]} {[%emt 00:00:53]} a4
{[%clk 00:41:50]} {[%emt 00:01:49]} 15. Kb1 {[%clk 00:52:40]} {[%emt 00:01:07]}
Bc5 {[%clk 00:40:27]} {[%emt 00:01:33]} 16. Ng3 {[%clk 00:52:29]} {[%emt
00:00:21]} b4 {[%clk 00:39:35]} {[%emt 00:01:01]} 17. Nce2 {[%clk 00:52:32]}
{[%emt 00:00:07]} g6 {[%clk 00:36:09]} {[%emt 00:03:36]} 18. Nc1 {[%clk
00:52:34]} {[%emt 00:00:09]} h5 {[%clk 00:35:52]} {[%emt 00:00:27]} 19. Nd3
{[%clk 00:52:04]} {[%emt 00:00:40]} b3 {[%clk 00:28:28]} {[%emt 00:07:34]} 20.
cxb3 {[%clk 00:51:52]} {[%emt 00:00:22]} axb3 {[%clk 00:28:29]} {[%emt
00:00:09]} 21. a3 {[%clk 00:51:24]} {[%emt 00:00:39]} Bd4 {[%clk 00:28:20]}
{[%emt 00:00:29]} 22. Ne2 {[%clk 00:51:12]} {[%emt 00:00:31]} Ba7 {[%clk
00:25:19]} {[%emt 00:03:11]} 23. Bc3 {[%clk 00:50:53]} {[%emt 00:00:30]} c5
{[%clk 00:24:30]} {[%emt 00:00:59]} 24. fxe5 {[%clk 00:50:52]} {[%emt
00:00:11]} c4 {[%clk 00:23:42]} {[%emt 00:00:58]} 25. Nb4 {[%clk 00:50:42]}
{[%emt 00:00:21]} Nxe5 {[%clk 00:19:37]} {[%emt 00:04:15]} 26. Nf4 {[%clk
00:50:25]} {[%emt 00:00:27]} Ne7 {[%clk 00:17:40]} {[%emt 00:02:07]} 27. Ne6
{[%clk 00:48:50]} {[%emt 00:01:45]} Kf7 {[%clk 00:14:38]} {[%emt 00:03:13]} 28.
Nc7 {[%clk 00:48:33]} {[%emt 00:00:27]} Kg7 {[%clk 00:11:57]} {[%emt 00:02:51]}
29. Nxa8 {[%clk 00:47:45]} {[%emt 00:00:59]} Rxa8 {[%clk 00:11:17]} {[%emt
00:00:49]} 30. Bxe5 {[%clk 00:47:04]} {[%emt 00:00:51]} fxe5 {[%clk 00:10:30]}
{[%emt 00:00:56]} 31. Rd7 {[%clk 00:47:09]} {[%emt 00:00:06]} Bc5 {[%clk
00:10:24]} {[%emt 00:00:13]} 32. Nd5 {[%clk 00:47:09]} {[%emt 00:00:13]} Re8
{[%clk 00:09:46]} {[%emt 00:00:46]} 33. Nc7 {[%clk 00:47:08]} {[%emt 00:00:12]}
Rc8 {[%clk 00:05:20]} {[%emt 00:04:36]} 34. Ne6+ {[%clk 00:47:04]} {[%emt
00:00:15]} Kh6 {[%clk 00:04:33]} {[%emt 00:00:56]} 35. Nxc5 {[%clk 00:47:08]}
{[%emt 00:00:06]} Nc6 {[%clk 00:03:21]} {[%emt 00:01:22]} 36. Rff7 {[%clk
00:46:55]} {[%emt 00:00:22]} Nd4 {[%clk 00:03:20]} {[%emt 00:00:11]} 37. h4
{[%clk 00:46:41]} {[%emt 00:00:24]} Rh8 {[%clk 00:03:13]} {[%emt 00:00:17]} 38.
Na4 {[%clk 00:46:07]} {[%emt 00:00:44]} Ne6 {[%clk 00:02:48]} {[%emt 00:00:35]}
39. Nc3 {[%clk 00:45:59]} {[%emt 00:00:18]} Nc5 {[%clk 00:02:40]} {[%emt
00:00:18]} 40. Rc7 {[%clk 00:45:57]} {[%emt 00:00:09]} Ne6 {[%clk 00:02:26]}
{[%emt 00:00:25]} 41. Rxc4 {[%clk 00:45:41]} {[%emt 00:00:27]} Rd8 {[%clk
00:01:53]} {[%emt 00:00:43]} 42. Nd5 {[%clk 00:45:17]} {[%emt 00:00:34]} Nf4
{[%clk 00:01:45]} {[%emt 00:00:18]} 43. Rcc7 {[%clk 00:44:53]} {[%emt
00:00:35]} Rh8 {[%clk 00:01:32]} {[%emt 00:00:22]} 44. Nf6 {[%clk 00:44:45]}
{[%emt 00:00:18]} g5 {[%clk 00:00:37]} {[%emt 00:00:27]} 45. g3 {[%clk
00:43:26]} {[%emt 00:02:07]} Ne2 {[%clk 00:00:36]} {[%emt 00:00:11]} 46. Nd5
{[%clk 00:42:46]} {[%emt 00:00:51]} gxh4 {[%clk 00:00:31]} {[%emt 00:00:15]} 47.
gxh4 {[%clk 00:42:45]} {[%emt 00:00:11]} 1-0